[Event "8th Holuj-Radzikowska 2018"]
[Site "Wroclaw"]
[Date "2018.12.04"]
[Round "1"]
[White "Kulon, Klaudia"]
[Black "Skripchenko, Almira"]
[Result "1-0"]
[ECO "B34"]
[WhiteElo "2333"]
[BlackElo "2408"]
[Annotator "ChessBase"]
[PlyCount "111"]
[EventDate "2018.11.26"]
[EventType "schev"]
[EventCountry "POL"]
[SourceTitle "playchess.com"]
[Source "ChessBase"]
[SourceQuality "1"]
[WhiteTeam "Poland"]
[BlackTeam "World"]
[TimeControl "40/5400+30:1800+30"]

1. e4 {[%emt 0:00:00]} c5 {[%emt 0:00:00]} 2. Nf3 {[%emt 0:00:00]} Nc6 {[%emt 0:00:00]} 3. d4 {[%emt 0:00:00]} cxd4 {[%emt 0:00:00]} 4. Nxd4 {[%emt 0:00:00]} Nf6 {[%emt 0:00:00]} 5. Nc3 {[%emt 0:00:00]} e5 {[%emt 0:00:25]} 6. Ndb5 {[%emt 0:00:00]} d6 {[%emt 0:00:07]} 7. a4 {[%emt 0:00:00]} a6 {[%emt 0:02:42]} 8. Na3 {[%emt 0:00:06]} Bg4 {[%emt 0:00:12]} 9. Be2 {[%emt 0:00:11]} Bxe2 {[%emt 0:11:07]} 10. Qxe2 {[%emt 0:00:10]} d5 {[%emt 0:03:09]} 11. Bg5 {[%emt 0:00:09]} dxe4 {[%emt 0:01:01]} 12. Nxe4 {[%emt 0:02:23]} Be7 {[%emt 0:00:12]} 13. Bxf6 {[%emt 0:01:44]} Bxf6 {[%emt 0:00:07]} 14. Rd1 {[%emt 0:03:18]} Qe7 {[%emt 0:11:05]} 15. Nd6+ {[%emt 0:06:27]} Kf8 {[%emt 0:00:10]} 16. c3 {[%emt 0:02:18]} Nd4 {[%emt 0:27:03]} 17. cxd4 {[%emt 0:00:57]} Qxd6 {[%emt 0:00:05]} 18. dxe5 {[%emt 0:01:47]} Qxe5 {[%emt 0:01:24]} 19. Qxe5 {[%emt 0:01:00]} Bxe5 {[%emt 0:00:06]} 20. O-O {[%emt 0:03:32]} Bxb2 {[%emt 0:15:37]} 21. Nc4 {[%emt 0:00:31]} Bf6 {[%emt 0:00:05]} 22. Rd7 {[%emt 0:03:11]} b5 {[%emt 0:00:54]} 23. axb5 axb5 {[%emt 0:00:04]} 24. Nd6 {[%emt 0:00:14]} Rb8 {[%emt 0:12:07]} 25. Re1 {[%emt 0:06:34]} h6 {[%emt 0:02:02]} 26. Nxf7 {[%emt 0:16:49]} Rh7 {[%emt 0:00:57]} 27. Nd6 {[%emt 0:00:57]} b4 {[%emt 0:01:50]} 28. Re6 {[%emt 0:03:30]} b3 {[%emt 0:04:19]} 29. Rb7 {[%emt 0:03:54]} Ra8 {[%emt 0:00:05]} 30. g3 {[%emt 0:00:22]} b2 {[%emt 0:01:04]} 31. Kg2 {[%emt 0:00:12]} Bd4 {[%emt 0:03:31]} 32. Ree7 {[%emt 0:09:08]} Bf6 {[%emt 0:01:50]} 33. Red7 {[%emt 0:01:01]} Kg8 {[%emt 0:02:34]} 34. Ne4 {[%emt 0:00:25]} Rf8 {[%emt 0:00:30]} 35. Nxf6+ {[%emt 0:03:09]} Rxf6 {[%emt 0:00:06]} 36. Rxb2 {[%emt 0:00:02]} h5 {[%emt 0:00:53]} 37. Rbb7 {[%emt 0:00:40]} h4 {[%emt 0:00:34]} 38. g4 {[%emt 0:00:15]} Rf8 {[%emt 0:00:30]} 39. h3 {[%emt 0:00:35]} Kh8 {[%emt 0:00:06]} 40. f4 {[%emt 0:00:00]} Rh6 {[%emt 0:00:00]} 41. f5 {[%emt 0:04:56]} Rg8 {[%emt 0:13:47]} 42. Kf3 {[%emt 0:03:50]} Ra6 {[%emt 0:00:47]} 43. g5 {[%emt 0:03:14]} Ra4 {[%emt 0:09:40]} 44. Re7 {[%emt 0:06:46]} Rc8 {[%emt 0:02:18]} 45. Re4 {[%emt 0:00:52]} Ra3+ {[%emt 0:06:48]} 46. Kg4 {[%emt 0:00:16]} Rf8 {[%emt 0:00:15]} 47. g6 {[%emt 0:03:08]} Rg3+ {[%emt 0:00:50]} 48. Kxh4 {[%emt 0:00:04]} Rf3 {[%emt 0:00:29]} 49. Rf7 {[%emt 0:00:20]} Ra8 {[%emt 0:00:31]} 50. Kg4 {[%emt 0:00:07]} Rf1 {[%emt 0:00:08]} 51. Rfe7 {[%emt 0:00:16]} Rg1+ {[%emt 0:00:14]} 52. Kh5 {[%emt 0:01:56]} Rf8 {[%emt 0:00:06]} 53. f6 {[%emt 0:02:02]} gxf6 {[%emt 0:00:27]} 54. Kh6 {[%emt 0:00:03]} f5 {[%emt 0:01:29]} 55. Rh7+ {[%emt 0:00:05]} Kg8 {[%emt 0:00:04]} 56. Ree7 {[%emt 0:00:05]} 1-0

[Event "8th Holuj-Radzikowska 2018"]
[Site "Wroclaw"]
[Date "2018.12.05"]
[Round "2"]
[White "Javakhishvili, Lela"]
[Black "Szczepkowska, Karina"]
[Result "0-1"]
[ECO "E10"]
[WhiteElo "2464"]
[BlackElo "2408"]
[Annotator "RC"]
[PlyCount "120"]
[EventDate "2018.11.26"]
[EventType "schev"]
[EventCountry "POL"]
[SourceTitle "playchess.com"]
[Source "ChessBase"]
[SourceQuality "1"]
[WhiteTeam "World"]
[BlackTeam "Poland"]
[TimeControl "40/5400+30:1800+30"]

1. d4 {[%emt 0:00:00]} Nf6 {[%emt 0:00:00]} 2. c4 {[%emt 0:00:00]} e6 {[%emt 0:00:17]} 3. Nf3 {[%emt 0:00:00]} a6 {[%emt 0:00:05]} 4. Bg5 {[%emt 0:03:25]} d5 {[%emt 0:01:17]} 5. e3 {[%emt 0:02:29]} dxc4 {[%emt 0:07:40]} 6. Bxc4 {[%emt 0:00:39]} b5 {[%emt 0:00:05]} 7. Bd3 {[%emt 0:01:30]} Bb7 {[%emt 0:03:59]} 8. a4 {[%emt 0:02:52]} b4 {[%emt 0:03:16]} 9. Nbd2 {[%emt 0:01:50]} c5 {[%emt 0:06:16]} 10. e4 {[%emt 0:10:00]} cxd4 {[%emt 0:15:23]} 11. e5 {[%emt 0:01:19]} h6 {[%emt 0:00:31]} 12. Bh4 {[%emt 0:00:38]} g5 {[%emt 0:01:48]} 13. Bg3 {[%emt 0:04:10]} Nh5 {[%emt 0:07:07]} 14. O-O {[%emt 0:11:07]} Be7 {[%emt 0:07:32]} 15. Be4 {[%emt 0:05:54]} Ra7 {[%emt 0:06:20]} 16. Rc1 {[%emt 0:02:53]} Ng7 {[%emt 0:06:45]} 17. Rc4 {[%emt 0:06:00]} Bxe4 {[%emt 0:02:59]} 18. Nxe4 {[%emt 0:00:06]} Nf5 {[%emt 0:00:03]} 19. Nd6+ {[%emt 0:09:35]} Bxd6 {[%emt 0:02:55]} 20. exd6 {[%emt 0:00:07]} O-O {[%emt 0:02:13]} 21. Rxd4 {[%emt 0:01:09]} Nxd4 {[%emt 0:01:12]} 22. Qxd4 {[%emt 0:00:22]} Rb7 {[%emt 0:04:38]} 23. Rc1 {[%emt 0:02:11]} Rb6 {[%emt 0:01:57]} 24. h4 {[%emt 0:03:18]} gxh4 {[%emt 0:07:52]} 25. Bxh4 {[%emt 0:05:41]} f6 {[%emt 0:05:16]} 26. Rc7 {[%emt 0:02:00]} Nd7 {[%emt 0:00:01]} 27. Qg4+ {[%emt 0:02:38]} Kh8 {[%emt 0:00:55]} 28. Qg6 {[%emt 0:09:56]} Rxd6 {[%emt 0:00:06]} 29. Qxh6+ {[%emt 0:00:08]} Kg8 {[%emt 0:00:02]} 30. Qg6+ {[%emt 0:00:24]} Kh8 {[%emt 0:00:02]} 31. Qh5+ {[%emt 0:04:05]} Kg8 {[%emt 0:03:42]} 32. Qg6+ {[%emt 0:03:01]} Kh8 {[%emt 0:00:16]} 33. Qh6+ {[%emt 0:00:10]} Kg8 {[%emt 0:00:16]} 34. Rc4 {[%emt 0:00:12]} Kf7 {[%emt 0:01:06]} 35. Qh7+ {[%emt 0:03:38]} Ke8 {[%emt 0:00:07]} 36. Rg4 {[%emt 0:00:19]} Rd1+ {[%emt 0:00:50]} 37. Kh2 {[%emt 0:00:02]} Qc7+ {[%emt 0:00:17]} 38. Bg3 {[%emt 0:01:11]} Qc1 {[%emt 0:02:04]} 39. Qg6+ {[%emt 0:00:10]} Kd8 {[%emt 0:00:44]} 40. Bf4 {[%emt 0:00:00]} Qb1 {[%emt 0:00:00]} 41. Qg7 {[%emt 0:01:52]} Rh1+ {[%emt 0:04:12]} 42. Kg3 {[%emt 0:00:02]} Rh7 {[%emt 0:01:01]} 43. Qg6 {[%emt 0:00:06]} Qxg6 {[%emt 0:00:10]} 44. Rxg6 {[%emt 0:00:02]} e5 {[%emt 0:02:16]} 45. Be3 {[%emt 0:02:03]} Rhh8 {[%emt 0:00:44]} 46. Nd2 {[%emt 0:06:24]} Rhg8 {[%emt 0:00:46]} 47. Rxg8 {[%emt 0:00:05]} Rxg8+ {[%emt 0:00:02]} 48. Kf3 {[%emt 0:00:03]} f5 {[%emt 0:02:38]} 49. g3 {[%emt 0:00:07]} Ke7 {[%emt 0:00:29]} 50. Nb3 {[%emt 0:01:06]} Ke6 {[%emt 0:01:28]} 51. Ke2 {[%emt 0:00:08]} Kd5 {[%emt 0:00:34]} 52. Kd3 {[%emt 0:00:19]} Rc8 {[%emt 0:02:46]} 53. Kd2 {[%emt 0:00:41]} Nf6 {[%emt 0:00:41]} 54. Bb6 {[%emt 0:01:59]} Ne4+ {[%emt 0:00:32]} 55. Kd3 {[%emt 0:00:21]} Nd6 {[%emt 0:00:45]} 56. Nd2 {[%emt 0:00:33]} e4+ {[%emt 0:00:49]} 57. Ke3 {[%emt 0:01:28]} Nc4+ {[%emt 0:02:54]} 58. Nxc4 {[%emt 0:00:07]} Rxc4 {[%emt 0:00:16]} 59. a5 {[%emt 0:05:15]} b3 {[%emt 0:01:15]} 60. Bd8 {[%emt 0:00:35]} Rc3+ {[%emt 0:00:34]} 0-1

[Event "8th Holuj-Radzikowska 2018"]
[Site "Wroclaw"]
[Date "2018.12.05"]
[Round "2"]
[White "Warakomska, Anna"]
[Black "Paehtz, Elisabeth"]
[Result "0-1"]
[ECO "C55"]
[WhiteElo "2233"]
[BlackElo "2487"]
[Annotator "RC"]
[PlyCount "72"]
[EventDate "2018.11.26"]
[EventType "schev"]
[EventCountry "POL"]
[SourceTitle "playchess.com"]
[Source "ChessBase"]
[SourceQuality "1"]
[WhiteTeam "Poland"]
[BlackTeam "World"]
[TimeControl "40/5400+30:1800+30"]

1. e4 {[%emt 0:00:00]} e5 {[%emt 0:00:00]} 2. Nf3 {[%emt 0:00:00]} Nc6 {[%emt 0:00:00]} 3. Bc4 {[%emt 0:00:00]} Nf6 {[%emt 0:00:00]} 4. d3 {[%emt 0:00:00]} Be7 {[%emt 0:01:31]} 5. O-O {[%emt 0:01:19]} O-O {[%emt 0:00:05]} 6. Re1 {[%emt 0:00:46]} d6 {[%emt 0:00:06]} 7. a4 {[%emt 0:01:12]} Be6 {[%emt 0:00:52]} 8. Bxe6 {[%emt 0:07:08]} fxe6 {[%emt 0:00:04]} 9. c3 {[%emt 0:00:26]} Nd7 {[%emt 0:08:31]} 10. Be3 {[%emt 0:08:06]} Qe8 {[%emt 0:03:57]} 11. Qb3 {[%emt 0:07:34]} Nd8 {[%emt 0:00:04]} 12. Nbd2 {[%emt 0:00:37]} Qg6 {[%emt 0:06:14]} 13. d4 {[%emt 0:09:17]} Bf6 {[%emt 0:00:11]} 14. a5 {[%emt 0:02:46]} a6 {[%emt 0:03:30]} 15. Qa4 {[%emt 0:09:24]} Qf7 {[%emt 0:02:02]} 16. Rad1 {[%emt 0:09:42]} Nc6 {[%emt 0:00:59]} 17. Nb3 {[%emt 0:06:24]} exd4 {[%emt 0:11:02]} 18. cxd4 {[%emt 0:00:26]} d5 {[%emt 0:00:04]} 19. e5 {[%emt 0:02:50]} Bd8 {[%emt 0:00:27]} 20. Re2 {[%emt 0:04:56]} Qh5 {[%emt 0:08:42]} 21. Nbd2 {[%emt 0:04:26]} Rf7 {[%emt 0:01:14]} 22. Rc1 {[%emt 0:07:55]} Na7 {[%emt 0:00:18]} 23. Nf1 {[%emt 0:00:56]} Nb5 {[%emt 0:04:49]} 24. Ng3 {[%emt 0:01:08]} Qg6 {[%emt 0:00:07]} 25. Ne1 {[%emt 0:01:56]} c5 {[%emt 0:01:50]} 26. f4 {[%emt 0:07:26]} cxd4 {[%emt 0:04:45]} 27. Bd2 {[%emt 0:00:04]} Qg4 {[%emt 0:14:52]} 28. Nd3 {[%emt 0:01:39]} Bh4 {[%emt 0:07:52]} 29. Nf2 {[%emt 0:01:24]} Qg6 {[%emt 0:00:03]} 30. f5 {[%emt 0:01:22]} Rxf5 {[%emt 0:00:02]} 31. Nxf5 {[%emt 0:00:04]} Qxf5 {[%emt 0:00:03]} 32. g3 {[%emt 0:04:04]} Qf3 {[%emt 0:02:13]} 33. Qd1 {[%emt 0:00:30]} Bxg3 {[%emt 0:03:08]} 34. hxg3 {[%emt 0:00:03]} Qxg3+ {[%emt 0:00:04]} 35. Kf1 {[%emt 0:00:51]} Rf8 {[%emt 0:00:27]} 36. Qe1 {[%emt 0:00:42]} Qh2 {[%emt 0:00:21]} 0-1

[Event "8th Holuj-Radzikowska 2018"]
[Site "Wroclaw"]
[Date "2018.12.08"]
[Round "5"]
[White "Skripchenko, Almira"]
[Black "Szczepkowska, Karina"]
[Result "1/2-1/2"]
[ECO "B51"]
[WhiteElo "2408"]
[BlackElo "2408"]
[Annotator "NA"]
[PlyCount "42"]
[EventDate "2018.11.26"]
[EventType "schev"]
[EventCountry "POL"]
[SourceTitle "playchess.com"]
[Source "ChessBase"]
[SourceQuality "1"]
[WhiteTeam "World"]
[BlackTeam "Poland"]
[BlackTeamCountry "POL"]
[TimeControl "40/5400+30:1800+30"]

1. e4 {[%emt 0:00:00]} c5 {[%emt 0:00:00]} 2. Nf3 {[%emt 0:00:00]} d6 {[%emt 0:00:00]} 3. Bb5+ {[%emt 0:01:14]} Nd7 {[%emt 0:00:18]} 4. d4 {[%emt 0:03:37]} cxd4 {[%emt 0:00:12]} 5. Qxd4 {[%emt 0:00:08]} a6 {[%emt 0:01:45]} 6. Bxd7+ {[%emt 0:01:27]} Bxd7 {[%emt 0:00:08]} 7. c4 {[%emt 0:01:03]} Nf6 {[%emt 0:02:09]} 8. Bg5 {[%emt 0:04:02]} e6 {[%emt 0:01:34]} 9. Nc3 {[%emt 0:00:11]} Be7 {[%emt 0:00:58]} 10. Rd1 {[%emt 0:02:06]} Bc6 {[%emt 0:02:20]} 11. O-O {[%emt 0:00:59]} O-O {[%emt 0:00:13]} 12. Qd3 {[%emt 0:01:41]} Qc7 {[%emt 0:03:36]} 13. a4 {[%emt 0:02:58]} Rfd8 {[%emt 0:01:55]} 14. Rfe1 {[%emt 0:02:18]} Rac8 {[%emt 0:02:33]} 15. Nd4 {[%emt 0:02:17]} Be8 {[%emt 0:01:47]} 16. b3 {[%emt 0:00:15]} Qc5 {[%emt 0:01:49]} 17. Be3 {[%emt 0:00:45]} Qa5 {[%emt 0:01:12]} 18. Bd2 {[%emt 0:02:21]} Qc5 {[%emt 0:03:09]} 19. Be3 {[%emt 0:05:49]} Qa5 {[%emt 0:00:48]} 20. Bd2 {[%emt 0:00:15]} Qc5 {[%emt 0:00:06]} 21. Be3 {[%emt 0:00:19]} Qa5 1/2-1/2

[Event "8th Holuj-Radzikowska 2018"]
[Site "Wroclaw"]
[Date "2018.12.08"]
[Round "5"]
[White "Warakomska, Anna"]
[Black "Javakhishvili, Lela"]
[Result "0-1"]
[ECO "B28"]
[WhiteElo "2233"]
[BlackElo "2464"]
[Annotator "RC"]
[PlyCount "76"]
[EventDate "2018.11.26"]
[EventType "schev"]
[EventCountry "POL"]
[SourceTitle "playchess.com"]
[Source "ChessBase"]
[SourceQuality "1"]
[WhiteTeam "Poland"]
[BlackTeam "World"]
[WhiteTeamCountry "POL"]
[TimeControl "40/5400+30:1800+30"]

1. e4 {[%emt 0:00:00]} c5 {[%emt 0:00:00]} 2. Nf3 {[%emt 0:00:00]} a6 {[%emt 0:00:00]} 3. c4 {[%emt 0:00:48]} b6 {[%emt 0:00:14]} 4. d4 {[%emt 0:01:01]} cxd4 {[%emt 0:00:06]} 5. Nxd4 {[%emt 0:00:03]} e6 {[%emt 0:00:20]} 6. Nc3 {[%emt 0:00:57]} Bb7 {[%emt 0:00:06]} 7. Be2 {[%emt 0:01:06]} d6 {[%emt 0:00:19]} 8. Be3 {[%emt 0:02:19]} Nf6 {[%emt 0:00:07]} 9. f3 {[%emt 0:00:07]} Be7 {[%emt 0:00:29]} 10. O-O {[%emt 0:00:06]} O-O {[%emt 0:00:12]} 11. Rc1 {[%emt 0:01:08]} Nbd7 {[%emt 0:02:08]} 12. Qd2 {[%emt 0:01:44]} Rc8 {[%emt 0:02:28]} 13. b4 {[%emt 0:07:23]} Rc7 {[%emt 0:06:04]} 14. Na4 {[%emt 0:07:32]} Qb8 {[%emt 0:01:15]} 15. Rc2 {[%emt 0:04:34]} Rfc8 {[%emt 0:05:11]} 16. Rfc1 {[%emt 0:01:18]} Ba8 {[%emt 0:03:01]} 17. Nb2 {[%emt 0:04:03]} Ne5 {[%emt 0:01:48]} 18. Nb3 {[%emt 0:10:24]} Nfd7 {[%emt 0:04:05]} 19. Bf1 {[%emt 0:12:15]} Kh8 {[%emt 0:07:42]} 20. Qf2 {[%emt 0:05:39]} g5 {[%emt 0:08:37]} 21. c5 {[%emt 0:10:35]} dxc5 {[%emt 0:05:44]} 22. Bxa6 {[%emt 0:00:37]} Rg8 {[%emt 0:00:24]} 23. bxc5 {[%emt 0:00:59]} g4 {[%emt 0:05:55]} 24. cxb6 {[%emt 0:06:00]} Rxc2 {[%emt 0:00:29]} 25. Qxc2 {[%emt 0:01:10]} gxf3 {[%emt 0:00:24]} 26. g3 {[%emt 0:00:15]} Ng4 {[%emt 0:17:42]} 27. Bd4+ {[%emt 0:03:59]} e5 {[%emt 0:00:38]} 28. Qc7 {[%emt 0:02:38]} exd4 {[%emt 0:01:29]} 29. b7 {[%emt 0:00:23]} Bxb7 {[%emt 0:03:26]} 30. Bxb7 {[%emt 0:00:22]} Bg5 {[%emt 0:01:35]} 31. Qxb8 {[%emt 0:07:23]} Be3+ {[%emt 0:00:35]} 32. Kh1 {[%emt 0:00:37]} Rxb8 {[%emt 0:01:33]} 33. Rc7 {[%emt 0:02:47]} Nf2+ {[%emt 0:07:06]} 34. Kg1 {[%emt 0:00:02]} Ne5 {[%emt 0:00:56]} 35. Kf1 {[%emt 0:02:57]} Nfg4 {[%emt 0:00:29]} 36. Ba6 {[%emt 0:01:00]} Nxh2+ {[%emt 0:00:17]} 37. Ke1 {[%emt 0:00:02]} f2+ {[%emt 0:00:14]} 38. Kd1 {[%emt 0:00:02]} d3 {[%emt 0:00:38]} 0-1